bitfinex-derivatives/quotes_SOLF0:USTF0_20260314
["timestamp","ask_amount","ask_price","bid_price","bid_amount"]
[1773477543975,3.8624509,87.219,87.172,3.85571845]
[1773477544676,14.23554156,87.257,87.142,70.41]
[1773477544677,3.86213111,87.239,87.181,3.85571845]
[1773477544875,13.78197406,87.25,87.181,3.85571845]
[1773477544876,3.86213111,87.237,87.181,3.85571845]
[1773477545079,3.86213111,87.235,87.181,3.85571845]
[1773477546383,13.03891913,87.234,87.181,3.85571845]
[1773477546682,3.85634314,87.234,87.182,3.85571845]
[1773477547073,10.314,87.244,87.189,3.85571845]
[1773477547281,3.86363258,87.242,87.201,3.85571845]
[1773477547678,10.315,87.238,87.201,3.85571845]
[1773477547884,3.87051744,87.237,87.201,3.85571845]
[1773477549587,3.88756215,87.234,87.201,3.85571845]
[1773477551082,3.10531789,87.23,87.17,3.10531789]
[1773477551287,4.01187171,87.219,87.16,3.10531789]
[1773477552690,4.01187171,87.216,87.169,10.323]
[1773477553191,4.01187171,87.216,87.17,3.85571845]
[1773477554492,10.317,87.217,87.171,3.85571845]
[1773477555188,4.01187171,87.216,87.171,3.85571845]
[1773477556692,4.01187171,87.216,87.173,3.85571845]
[1773477556985,10.316,87.226,87.173,3.85571845]
[1773477556986,4.01187171,87.225,87.173,3.85571845]
[1773477557183,4.01187171,87.223,87.173,3.85571845]
[1773477557385,4.01187171,87.223,87.175,3.85571845]
[1773477558787,4.01187171,87.22,87.181,3.85571845]
[1773477559495,4.01187171,87.22,87.182,3.85571845]
[1773477561591,10.317,87.219,87.182,3.85571845]
[1773477562996,3.65982852,87.218,87.182,3.85571845]
[1773477565307,3.65982852,87.214,87.171,3.81076626]
[1773477566597,3.65982852,87.209,87.171,3.81076626]
[1773477567702,3.65982852,87.209,87.161,10.324]
[1773477568002,3.65982852,87.209,87.162,3.81076626]
[1773477568495,3.65982852,87.209,87.165,3.81076626]
[1773477571902,10.318,87.21,87.165,3.81076626]
[1773477571903,3.65982852,87.206,87.165,3.81076626]
[1773477583211,10.317,87.215,87.165,3.81076626]
[1773477584007,10.317,87.215,87.171,3.81076626]
[1773477585109,3.65982852,87.217,87.171,3.81076626]
[1773477585412,3.65982852,87.217,87.175,3.81076626]
[1773477586612,3.65982852,87.217,87.178,3.81076626]
[1773477591617,3.77703313,87.209,87.163,3.8148002]
[1773477592518,10.318,87.206,87.163,3.8148002]
[1773477592718,3.77703313,87.209,87.163,3.8148002]
[1773477595216,3.77703313,87.209,87.165,3.8148002]
[1773477603125,3.77703313,87.206,87.165,3.8148002]
[1773477603624,3.77703313,87.206,87.164,10.323]
[1773477606223,3.77703313,87.206,87.162,36.06]
[1773477607530,3.77703313,87.206,87.162,39.8748002]
[1773477607732,10.317,87.215,87.164,3.8148002]
[1773477608033,3.77703313,87.214,87.164,3.8148002]
[1773477608531,3.77703313,87.214,87.162,36.06]
[1773477608532,3.77703313,87.214,87.166,3.8148002]
[1773477613942,3.77703313,87.211,87.166,3.8148002]
[1773477614133,3.77703313,87.211,87.13,34.35]
[1773477614134,3.77703313,87.199,87.152,36.06]
[1773477614534,3.77703313,87.188,87.152,36.06]
[1773477615339,3.77703313,87.188,87.151,3.8148002]
[1773477616137,3.77703313,87.188,87.146,36.06]
[1773477617936,3.77703313,87.188,87.137,10.326]
[1773477617937,3.77703313,87.188,87.142,10.326]
[1773477618237,3.10531954,87.19,87.13,3.10531954]
[1773477618238,3.77703313,87.186,87.143,39.8748002]
[1773477618839,3.77703313,87.186,87.143,3.8148002]
[1773477621746,10.321,87.184,87.143,3.8148002]
[1773477622050,3.73788982,87.183,87.143,3.8148002]
[1773477625854,3.73788982,87.179,87.143,3.8148002]
[1773477630654,3.73788982,87.179,87.133,3.85032646]
[1773477631553,3.73788982,87.177,87.133,3.85032646]
[1773477632753,3.73788982,87.174,87.122,3.85032646]
[1773477632957,3.73788982,87.169,87.122,3.85032646]
[1773477633854,3.73788982,87.169,87.119,36.08]
[1773477634256,3.73788982,87.157,87.119,36.08]
[1773477638555,3.73788982,87.157,87.11,3.85032646]
[1773477638757,3.73788982,87.159,87.111,3.85032646]
[1773477639962,10.323,87.169,87.121,3.85032646]
[1773477640358,3.73788982,87.18,87.141,3.85032646]
[1773477641164,3.73788982,87.178,87.141,3.85032646]
[1773477642665,14.05988982,87.177,87.141,3.85032646]
[1773477644266,3.73788982,87.177,87.141,3.85032646]
[1773477647469,3.73788982,87.196,87.144,3.85032646]
[1773477648764,4.0210264,87.189,87.144,3.85032646]
[1773477652270,4.0210264,87.189,87.146,4.0141587]
[1773477656568,10.319,87.198,87.146,4.0141587]
[1773477657071,3.95802312,87.197,87.146,4.0141587]
[1773477657269,3.95802312,87.197,87.15,4.0141587]
[1773477657467,3.95802312,87.197,87.151,4.0141587]
[1773477657670,14.27602312,87.207,87.16,3.10856166]
[1773477657866,14.27602312,87.207,87.161,4.0141587]
[1773477657867,9.15862659,87.206,87.161,4.0141587]
[1773477658066,9.15862659,87.205,87.161,4.0141587]
[1773477658267,9.16070474,87.204,87.161,4.0141587]
[1773477658470,14.27602312,87.207,87.161,4.0141587]
[1773477658668,9.16070474,87.206,87.161,4.0141587]
[1773477658872,9.16070474,87.205,87.161,4.0141587]
[1773477659164,9.16070474,87.204,87.161,4.0141587]
[1773477659370,14.27602312,87.207,87.161,4.0141587]
[1773477659562,9.16138726,87.206,87.161,4.0141587]
[1773477659769,14.27602312,87.207,87.161,4.0141587]
[1773477660365,3.95802312,87.217,87.163,4.0141587]
[1773477660571,3.95802312,87.227,87.171,4.0141587]
[1773477660768,3.95802312,87.225,87.171,4.0141587]
[1773477660969,3.95802312,87.223,87.171,4.0141587]
[1773477661265,3.95802312,87.223,87.17,3.10856166]
[1773477661266,9.16387258,87.222,87.173,4.0141587]
[1773477661470,9.16387258,87.221,87.173,4.0141587]
[1773477661668,9.16387258,87.22,87.173,4.0141587]
[1773477661867,3.95802312,87.223,87.173,4.0141587]
[1773477662465,3.95802312,87.223,87.176,4.0141587]
[1773477663572,3.95802312,87.223,87.18,4.0141587]
[1773477664977,3.10856166,87.22,87.18,4.0141587]
[1773477665169,3.95802312,87.219,87.17,14.3361587]
[1773477665374,3.95802312,87.219,87.171,4.0141587]
[1773477667579,3.95802312,87.218,87.171,4.0141587]
[1773477668680,3.95802312,87.216,87.171,4.0141587]
[1773477669178,3.95802312,87.214,87.171,4.0141587]
[1773477673680,3.95802312,87.223,87.181,4.0141587]
[1773477675381,3.95802312,87.223,87.129,34.35]
[1773477675382,3.95802312,87.235,87.191,4.0141587]
[1773477675580,3.95802312,87.249,87.191,4.0141587]
[1773477675774,3.95802312,87.249,87.201,4.0141587]
[1773477676377,3.95802312,87.249,87.205,4.0141587]
[1773477685194,3.95802312,87.249,87.211,3.6924521]
[1773477688102,10.312,87.262,87.221,3.6924521]
[1773477688103,4.01838563,87.259,87.221,3.6924521]
[1773477699703,4.01838563,87.249,87.206,3.6924521]
[1773477704012,4.01838563,87.246,87.206,3.6924521]
[1773477708905,4.01838563,87.246,87.196,10.319]
[1773477708906,3.71980222,87.244,87.197,4.01031342]
[1773477709108,3.71980222,87.244,87.199,4.01031342]
[1773477709713,3.71980222,87.244,87.201,4.01031342]
[1773477712910,10.313,87.251,87.203,3.82157325]
[1773477713406,13.98435944,87.251,87.203,3.82157325]
[1773477714214,3.67135944,87.25,87.203,3.82157325]
[1773477714514,3.67135944,87.25,87.205,3.82157325]
[1773477715416,3.67135944,87.248,87.205,3.82157325]
[1773477716517,3.67135944,87.246,87.205,3.82157325]
[1773477727525,14.1805747,87.283,87.196,10.32]
[1773477727526,3.67135944,87.239,87.196,3.82157325]
[1773477728527,3.67135944,87.238,87.196,3.82157325]
[1773477732621,3.67135944,87.238,87.198,3.82157325]
[1773477737431,3.67135944,87.235,87.198,3.82157325]
[1773477739938,3.67135944,87.264,87.2,3.10341533]
[1773477740131,3.67135944,87.249,87.201,3.82157325]
[1773477740533,3.67135944,87.249,87.175,3.82157325]
[1773477740729,3.67135944,87.247,87.175,3.82157325]
[1773477740933,3.67135944,87.245,87.175,3.82157325]
[1773477741131,3.67135944,87.241,87.188,3.82157325]
[1773477742032,3.10341533,87.24,87.188,3.82157325]
[1773477742233,3.10341533,87.24,87.163,28.58258293]
[1773477742234,3.73470733,87.229,87.178,3.90770594]
[1773477743531,3.73470733,87.227,87.178,3.90770594]
[1773477745336,3.73470733,87.219,87.178,3.90770594]
[1773477746535,3.73470733,87.217,87.17,36.08]
[1773477746738,3.73470733,87.209,87.17,36.08]
[1773477747637,3.73470733,87.206,87.17,36.08]
[1773477750034,3.73470733,87.204,87.168,3.90770594]
[1773477750740,194.788,87.281,87.142,10.326]
[1773477750741,3.73470733,87.199,87.146,3.90770594]
[1773477751640,3.73470733,87.199,87.149,3.90770594]
[1773477757043,3.73470733,87.199,87.15,3.10341533]
[1773477757244,3.73470733,87.199,87.151,3.90770594]
[1773477758838,3.73470733,87.196,87.151,3.90770594]
[1773477759844,3.73470733,87.194,87.151,3.90770594]
[1773477763658,3.73470733,87.192,87.151,3.90770594]
[1773477764656,3.73470733,87.179,87.142,36.08]
[1773477765057,3.73470733,87.179,87.143,3.90770594]
[1773477765454,3.73470733,87.219,87.15,3.10341533]
[1773477765656,3.73470733,87.219,87.143,3.90770594]
[1773477765657,3.73470733,87.218,87.162,3.90770594]
[1773477766357,3.10606279,87.21,87.162,3.90770594]
[1773477766562,3.73470733,87.209,87.162,3.90770594]
[1773477767663,10.319,87.201,87.162,3.90770594]
[1773477773068,3.7624133,87.2,87.162,3.90770594]
[1773477777272,10.319,87.197,87.162,3.90770594]
[1773477780467,3.7624133,87.2,87.162,3.90770594]
[1773477793887,3.7624133,87.2,87.165,3.96629769]
[1773477805788,10.318,87.208,87.165,3.96629769]
[1773477805993,3.96081651,87.21,87.167,3.76384312]
[1773477806297,3.96081651,87.208,87.167,3.76384312]
[1773477807598,3.96081651,87.207,87.167,3.76384312]
[1773477813497,3.96081651,87.205,87.167,3.76384312]
[1773477816095,3.96081651,87.205,87.154,3.76384312]
[1773477816399,3.96081651,87.203,87.154,3.76384312]
[1773477816598,3.96081651,87.201,87.154,3.76384312]
[1773477831806,3.96081651,87.201,87.158,4.03494875]
[1773477832009,3.80918016,87.199,87.158,4.03494875]
[1773477832701,3.80918016,87.197,87.153,36.08]
[1773477833503,3.80918016,87.193,87.153,36.08]
[1773477834507,10.32,87.191,87.153,36.08]
[1773477834708,3.80918016,87.19,87.153,36.08]
[1773477837409,3.80918016,87.19,87.153,40.11494875]
[1773477839802,3.80918016,87.19,87.154,4.03494875]
[1773477841806,3.80918016,87.19,87.153,36.08]
[1773477841807,3.80918016,87.186,87.153,36.08]
[1773477842007,3.80918016,87.184,87.153,36.08]
[1773477843101,3.80918016,87.184,87.142,4.03494875]
[1773477843506,10.322,87.175,87.142,4.03494875]
[1773477846617,3.80918016,87.182,87.142,4.03494875]
[1773477852112,3.80918016,87.18,87.142,4.03494875]
[1773477853520,10.322,87.179,87.142,4.03494875]
[1773477853725,3.80918016,87.178,87.142,4.03494875]
[1773477861918,3.85436796,87.175,87.142,4.03494875]
[1773477862320,3.85436796,87.209,87.142,4.03494875]
[1773477862519,3.85436796,87.184,87.142,4.03494875]
[1773477863230,3.85436796,87.181,87.142,4.03494875]
[1773477863630,3.85436796,87.179,87.131,3.71504135]
[1773477864531,3.85436796,87.175,87.131,3.71504135]
[1773477870934,14.17536796,87.186,87.134,3.71504135]
[1773477871138,3.85436796,87.185,87.141,3.71504135]
[1773477873138,3.85436796,87.181,87.141,3.71504135]
[1773477874629,3.6962722,87.179,87.141,3.71504135]
[1773477875435,3.6962722,87.177,87.141,3.71504135]
[1773477875631,3.6962722,87.177,87.128,3.99902602]
[1773477876634,3.6962722,87.173,87.128,3.99902602]
[1773477882341,3.6962722,87.165,87.128,3.99902602]
[1773477887952,10.324,87.162,87.128,3.99902602]
[1773477888151,3.6962722,87.165,87.128,3.99902602]
[1773477900466,3.81522374,87.185,87.141,3.78841755]
[1773477910074,3.81522374,87.195,87.151,3.78841755]
[1773477910474,3.81522374,87.195,87.161,3.78841755]
[1773477915477,3.81522374,87.204,87.161,3.78841755]
[1773477915979,3.81522374,87.202,87.161,3.78841755]
[1773477917379,3.81522374,87.202,87.152,36.1]
[1773477917580,3.81522374,87.196,87.152,36.1]
[1773477917982,3.81522374,87.196,87.152,39.88841755]
[1773477918185,3.81522374,87.196,87.153,3.78841755]
[1773477919285,3.81522374,87.193,87.153,3.78841755]
[1773477919681,3.81522374,87.188,87.152,36.1]
[1773477920680,3.81522374,87.186,87.152,36.1]
[1773477929797,3.81522374,87.186,87.152,39.84788398]
[1773477929994,3.81522374,87.186,87.153,3.74788398]
[1773477935001,10.321,87.187,87.153,3.74788398]
[1773477949317,14.23273618,87.187,87.153,3.74788398]
[1773477957630,3.75719757,87.186,87.153,3.74788398]
[1773477974036,3.75719757,87.191,87.153,3.74788398]
[1773477976245,9.1531449,87.19,87.153,3.74788398]
[1773477976441,3.75719757,87.191,87.153,3.74788398]
[1773477976646,3.75719757,87.189,87.153,3.74788398]
[1773477984547,4.02655399,87.199,87.161,3.75148353]
[1773477984747,9.150476,87.198,87.161,3.75148353]
[1773477985046,9.150476,87.197,87.161,3.75148353]
[1773477985246,4.02655399,87.196,87.161,3.75148353]
[1773477985441,4.02655399,87.196,87.152,39.85148353]
[1773477985641,4.02655399,87.194,87.153,36.1]
[1773477986343,10.32,87.193,87.153,36.1]
[1773477986646,10.32,87.193,87.114,28.43569545]
[1773477986647,4.02655399,87.189,87.132,3.75148353]
[1773477986845,4.02655399,87.187,87.134,3.75148353]
[1773477987048,4.02655399,87.185,87.134,3.75148353]
[1773477987346,4.02655399,87.183,87.134,3.75148353]
[1773477987544,4.02655399,87.181,87.134,3.75148353]
[1773477989748,4.02655399,87.181,87.133,36.1]
[1773477989749,4.02655399,87.181,87.137,3.75148353]
[1773477991052,4.02655399,87.181,87.139,3.75148353]
[1773477992750,4.02655399,87.181,87.14,3.10747015]
[1773477993052,4.02655399,87.181,87.141,3.75148353]
[1773478003558,4.02655399,87.179,87.141,3.75148353]
[1773478006762,4.02655399,87.177,87.141,3.75148353]
[1773478010762,3.1080311,87.19,87.141,3.75148353]
[1773478010763,3.99597234,87.175,87.141,3.75148353]
[1773478011567,10.322,87.173,87.141,3.75148353]
[1773478012967,3.99597234,87.175,87.141,3.75148353]
[1773478015570,3.99597234,87.175,87.142,3.80740205]
[1773478035889,3.99281085,87.173,87.132,3.80740205]
[1773478036191,3.99281085,87.169,87.122,3.80740205]
[1773478036888,3.1080311,87.16,87.116,3.80740205]
[1773478037188,3.99281085,87.159,87.116,3.80740205]
[1773478037589,3.99281085,87.156,87.116,3.80740205]
[1773478038289,3.99281085,87.139,87.106,3.80740205]
[1773478042088,3.92236088,87.138,87.095,3.98288919]
[1773478042290,3.92236088,87.129,87.086,3.98288919]
[1773478042985,3.92236088,87.128,87.086,3.98288919]
[1773478044591,3.92236088,87.126,87.086,3.98288919]
[1773478048095,3.92236088,87.126,87.088,3.98288919]
[1773478051797,3.92236088,87.126,87.088,36.1]
[1773478052095,3.92236088,87.126,87.089,3.98288919]
[1773478062505,3.92236088,87.136,87.092,3.98288919]
[1773478063704,3.92236088,87.136,87.094,14.31488919]
[1773478064103,3.92236088,87.136,87.095,3.98288919]
[1773478069808,3.83670198,87.129,87.089,3.7668287]
[1773478087220,3.80863963,87.127,87.089,3.7668287]
[1773478099825,3.80863963,87.147,87.094,3.85429165]
[1773478100034,3.80863963,87.145,87.094,3.85429165]
[1773478100231,3.80863963,87.143,87.094,3.85429165]
[1773478100534,3.80863963,87.141,87.094,3.85429165]
[1773478100732,3.80863963,87.139,87.094,3.85429165]
[1773478100929,3.80863963,87.137,87.094,3.85429165]
[1773478101132,3.80863963,87.135,87.094,3.85429165]
[1773478101334,3.74638771,87.133,87.094,3.85429165]
[1773478101635,9.24388327,87.132,87.096,3.88880817]
[1773478101930,3.74638771,87.133,87.096,3.88880817]
[1773478102135,3.74638771,87.131,87.096,3.88880817]
[1773478104436,3.74638771,87.129,87.096,3.88880817]
[1773478104736,3.74638771,87.127,87.096,3.88880817]
[1773478105038,3.74638771,87.125,87.082,36.1]
[1773478105232,3.74638771,87.123,87.082,36.1]
[1773478105426,3.74638771,87.119,87.068,10.335]
[1773478105627,3.74638771,87.117,87.069,36.1]
[1773478105832,3.11187887,87.12,87.069,36.1]
[1773478105833,3.74638771,87.115,87.069,36.1]
[1773478106036,3.74638771,87.113,87.069,39.98880817]
[1773478106234,3.74638771,87.111,87.07,3.88880817]
[1773478106432,3.11187887,87.12,87.07,3.88880817]
[1773478106433,3.74638771,87.109,87.07,3.88880817]
[1773478113835,3.74638771,87.099,87.067,36.1]
[1773478115137,3.74638771,87.099,87.068,3.88880817]
[1773478117231,3.74638771,87.099,87.049,10.337]
[1773478117439,3.74638771,87.098,87.051,3.88880817]
[1773478117839,3.74638771,87.098,87.054,3.88880817]
[1773478119542,3.74638771,87.098,87.056,3.88880817]
[1773478121844,3.74638771,87.089,87.032,3.88880817]
[1773478122638,3.74638771,87.089,87.034,3.88880817]
[1773478123643,3.74638771,87.089,87.039,3.88880817]
[1773478123845,3.74638771,87.089,87.03,3.11187887]
[1773478123846,3.74638771,87.079,87.03,36.12]
[1773478125347,3.74638771,87.079,87.03,40.00880817]
[1773478125549,3.74638771,87.079,87.03,50.34780817]
[1773478126644,3.74638771,87.079,87.038,10.338]
[1773478126839,3.74638771,87.079,87.039,3.88880817]
[1773478127046,3.74638771,87.094,87.041,3.88880817]
[1773478127246,3.74638771,87.094,87.04,3.11187887]
[1773478127247,3.74638771,87.094,87.051,3.88880817]
[1773478128750,4.01055343,87.105,87.061,3.71172838]
[1773478129546,4.01055343,87.105,87.063,3.71172838]
[1773478129745,4.01055343,87.116,87.07,3.11187887]
[1773478129949,4.01055343,87.116,87.071,3.71172838]
[1773478133053,10.63656379,87.146,87.071,3.71172838]
[1773478133054,3.71671441,87.114,87.071,3.71172838]
[1773478134349,14.04571441,87.113,87.071,3.71172838]
[1773478136250,3.71671441,87.112,87.071,3.71172838]
[1773478146459,10.328,87.122,87.072,3.9524862]
[1773478146760,3.71671441,87.121,87.072,3.9524862]
[1773478147562,3.71671441,87.121,87.075,3.9524862]
[1773478150657,3.71671441,87.121,87.081,3.9524862]
[1773478154467,34.83002331,87.159,87.049,36.12]
[1773478154468,3.71671441,87.143,87.091,3.9524862]
[1773478154765,12.91838454,87.142,87.091,3.9524862]
[1773478154961,3.71671441,87.138,87.091,3.9524862]
[1773478157259,3.71671441,87.168,87.111,3.9524862]
[1773478157463,3.71671441,87.166,87.111,3.9524862]
[1773478157663,3.71671441,87.164,87.121,3.9524862]
[1773478160061,3.71671441,87.164,87.124,3.9524862]
[1773478161673,3.71671441,87.164,87.125,10.328]
[1773478162670,3.95452488,87.159,87.1,3.11282664]
[1773478162973,3.95452488,87.159,87.049,179.0]
[1773478162974,3.95452488,87.139,87.088,3.78925056]
[1773478164770,3.95452488,87.139,87.091,3.78925056]
[1773478165575,3.95452488,87.137,87.091,3.78925056]
[1773478167072,10.325,87.148,87.101,3.78925056]
[1773478167277,3.95452488,87.147,87.101,3.78925056]
[1773478170472,3.95452488,87.129,87.084,3.78925056]
[1773478173383,3.95452488,87.125,87.072,3.78925056]
[1773478175582,3.95452488,87.125,87.083,3.78925056]
[1773478175789,3.95452488,87.139,87.083,3.78925056]
[1773478176283,3.95452488,87.133,87.085,3.78925056]
[1773478176782,3.11282664,87.13,87.085,3.78925056]
[1773478177085,3.95452488,87.129,87.085,3.78925056]
[1773478178389,3.95452488,87.127,87.085,3.78925056]
[1773478182789,3.95452488,87.118,87.071,3.78925056]
[1773478184889,3.11282664,87.12,87.071,3.78925056]
[1773478184890,3.95452488,87.116,87.071,3.78925056]
[1773478185491,3.11282664,87.11,87.071,3.78925056]
[1773478185684,3.11282664,87.11,87.06,36.12]
[1773478185685,3.95452488,87.109,87.06,3.78925056]
[1773478186588,3.95452488,87.108,87.06,3.78925056]
[1773478187093,3.95452488,87.108,87.064,3.78925056]
[1773478188696,3.95452488,87.108,87.067,3.97392702]
[1773478196504,3.95452488,87.108,87.06,3.11332352]
[1773478196505,3.70419248,87.099,87.056,39.77440446]
[1773478196802,3.70419248,87.099,87.057,3.65440446]
[1773478197698,3.70419248,87.097,87.057,3.65440446]
[1773478197900,3.70419248,87.097,87.061,3.65440446]
[1773478200005,3.70419248,87.096,87.056,36.12]
[1773478201603,3.70419248,87.093,87.056,36.12]
[1773478204006,3.70419248,87.11,87.057,3.65440446]
[1773478204205,3.70419248,87.11,87.061,3.65440446]
[1773478204411,3.70419248,87.109,87.061,3.65440446]
[1773478204812,3.70419248,87.108,87.061,3.65440446]
[1773478205105,9.16441089,87.141,87.061,3.65440446]
[1773478205106,3.70419248,87.099,87.061,3.65440446]
[1773478206512,3.70419248,87.097,87.056,36.12]
[1773478208719,3.70419248,87.094,87.056,36.12]
[1773478209717,14.03619248,87.092,87.056,36.12]
[1773478210717,3.70419248,87.091,87.056,36.12]
[1773478213023,3.70419248,87.091,87.056,39.77440446]
[1773478214422,3.70419248,87.091,87.057,3.65440446]
[1773478222633,3.80777091,87.106,87.06,3.11332352]
[1773478222838,3.80777091,87.121,87.081,3.85010151]
[1773478225542,3.80777091,87.119,87.081,3.85010151]
[1773478226637,14.13677091,87.118,87.081,3.85010151]
[1773478226942,3.80777091,87.117,87.081,3.85010151]
[1773478227236,3.80777091,87.114,87.068,3.85010151]
[1773478228531,3.80777091,87.112,87.068,3.85010151]
[1773478229538,3.80777091,87.107,87.068,3.85010151]
[1773478233240,14.13677091,87.117,87.07,3.11332352]
[1773478233441,14.13677091,87.117,87.056,36.12]
[1773478233442,3.80777091,87.117,87.081,3.85010151]
[1773478237842,3.80777091,87.128,87.081,3.85010151]
[1773478238942,3.80777091,87.127,87.081,3.85010151]
[1773478240548,3.80777091,87.125,87.081,3.85010151]
[1773478241941,3.80777091,87.12,87.081,3.85010151]
[1773478243545,10.329,87.119,87.081,3.85010151]
[1773478249853,4.00249298,87.118,87.081,3.85010151]
[1773478250248,4.00249298,87.127,87.083,3.70598213]
[1773478250749,4.00249298,87.118,87.073,3.70598213]
[1773478251249,3.70405365,87.109,87.073,3.70598213]
[1773478252151,14.03405365,87.108,87.073,3.70598213]
[1773478256955,3.70405365,87.107,87.073,3.70598213]
[1773478257955,3.70405365,87.121,87.073,3.70598213]
[1773478259754,3.70405365,87.121,87.075,3.86181287]
[1773478261549,10.327,87.133,87.091,3.86181287]
[1773478261852,9.19581314,87.132,87.091,3.86181287]
[1773478262052,9.19581314,87.131,87.091,3.86181287]
[1773478262250,10.327,87.133,87.091,3.86181287]
[1773478262449,9.19582739,87.132,87.091,3.86181287]
[1773478262650,9.19582739,87.131,87.091,3.86181287]
[1773478262856,10.327,87.133,87.091,3.86181287]
[1773478263059,9.19578001,87.132,87.091,3.86181287]
[1773478263260,10.327,87.133,87.091,3.86181287]
[1773478263559,9.19577913,87.132,87.091,3.86181287]
[1773478263758,9.19577913,87.131,87.091,3.86181287]
[1773478263959,10.327,87.133,87.091,3.86181287]
[1773478264260,12.90813293,87.132,87.091,3.86181287]
[1773478264459,9.20407928,87.131,87.091,3.86181287]
[1773478264760,3.70405365,87.132,87.091,3.86181287]
[1773478267463,3.70405365,87.146,87.101,3.86181287]
[1773478268753,3.70405365,87.146,87.103,3.86181287]
[1773478270763,3.70405365,87.146,87.106,3.86181287]
[1773478271363,10.325,87.154,87.106,3.86181287]
[1773478272065,50.34415014,87.19,87.101,36.12]
[1773478272066,3.70405365,87.167,87.111,3.86181287]
[1773478272266,3.70405365,87.165,87.111,3.86181287]
[1773478272462,3.70405365,87.157,87.111,3.86181287]
[1773478273570,3.70405365,87.155,87.111,3.86181287]
[1773478274661,3.70405365,87.153,87.111,3.86181287]
[1773478276664,3.70405365,87.149,87.111,3.86181287]
[1773478288475,3.70405365,87.149,87.101,36.12]
[1773478288682,3.75218444,87.147,87.102,3.74387654]
[1773478289578,3.75218444,87.141,87.102,3.74387654]
[1773478290172,3.75218444,87.139,87.102,3.74387654]
[1773478291183,14.07918444,87.137,87.102,3.74387654]
[1773478293989,3.75218444,87.133,87.084,3.74387654]
[1773478294186,3.75218444,87.133,87.086,3.74387654]
[1773478295679,3.75218444,87.13,87.086,3.74387654]
[1773478296081,3.75218444,87.129,87.086,3.74387654]
[1773478296385,3.11330329,87.13,87.086,3.74387654]
[1773478296386,3.75218444,87.127,87.086,3.74387654]
[1773478297689,3.75218444,87.124,87.086,3.74387654]
[1773478303896,3.75218444,87.121,87.086,3.74387654]
[1773478304094,3.75218444,87.121,87.04,34.41]
[1773478304095,3.75218444,87.109,87.065,3.74387654]
[1773478305092,3.75218444,87.124,87.071,3.74387654]
[1773478305299,3.75218444,87.124,87.081,3.74387654]
[1773478305798,10.327,87.133,87.091,3.74387654]
[1773478306097,14.07918444,87.133,87.091,3.74387654]
[1773478307298,10.327,87.13,87.091,3.74387654]
[1773478312099,10.326,87.139,87.092,3.6618438]
[1773478312796,10.326,87.139,87.094,10.332]
[1773478313000,10.326,87.139,87.101,3.6618438]
[1773478314400,3.77577695,87.166,87.111,3.6618438]
[1773478314701,3.77577695,87.166,87.061,20.671]
[1773478314702,3.77577695,87.164,87.121,3.6618438]
[1773478318700,3.77577695,87.179,87.123,3.6618438]
[1773478319000,12.96743275,87.178,87.125,3.6618438]
[1773478319207,12.96743275,87.178,87.131,3.6618438]
[1773478319208,3.77577695,87.178,87.131,3.6618438]
[1773478319804,3.77577695,87.191,87.141,3.6618438]
[1773478321007,3.77577695,87.189,87.141,3.6618438]
[1773478322699,3.77577695,87.177,87.141,3.6618438]
[1773478325305,3.77577695,87.175,87.141,3.6618438]
[1773478326208,10.322,87.174,87.141,3.6618438]
[1773478327301,14.09777695,87.174,87.141,3.6618438]
[1773478327503,3.77577695,87.173,87.124,3.6618438]
[1773478329510,3.77577695,87.173,87.127,3.6618438]
[1773478329710,3.77577695,87.173,87.131,3.6618438]
[1773478334611,3.77577695,87.173,87.135,3.6618438]
[1773478335214,3.77577695,87.173,87.114,3.6618438]
[1773478335215,3.10942662,87.17,87.114,3.6618438]
[1773478335416,3.77577695,87.169,87.114,3.6618438]
[1773478336316,3.77577695,87.152,87.103,3.6618438]
[1773478337011,10.325,87.149,87.103,3.6618438]
[1773478337417,3.77577695,87.152,87.114,3.6618438]
[1773478338616,3.77577695,87.152,87.118,3.6618438]
[1773478342610,3.69337668,87.175,87.125,3.85072205]
[1773478342819,3.69337668,87.175,87.062,34.43]
[1773478342820,3.69337668,87.169,87.114,3.85072205]
[1773478343517,3.69337668,87.163,87.114,3.85072205]
[1773478343714,3.69337668,87.159,87.101,3.85072205]
[1773478344620,3.69337668,87.158,87.101,3.85072205]
[1773478345622,3.69337668,87.153,87.101,3.85072205]
[1773478346122,3.69337668,87.149,87.096,10.331]
[1773478346719,3.69337668,87.149,87.097,3.85072205]
[1773478347513,3.69337668,87.146,87.097,3.85072205]
[1773478351326,3.69337668,87.143,87.097,3.85072205]
[1773478352129,3.69337668,87.143,87.101,3.85072205]
[1773478357830,3.69337668,87.14,87.101,3.85072205]
[1773478368139,3.66600818,87.138,87.101,3.85072205]
[1773478368738,3.66600818,87.138,87.091,4.02093498]
[1773478375043,3.66600818,87.138,87.094,10.332]
[1773478375240,3.66600818,87.138,87.095,3.66077858]